[Event "Titled Tuesday Blitz November 08 Early 2022"]
[White "Bon, Michael"]
[Black "Kukula, Pawel"]
[WhiteFideId "620696"]
[BlackFideId "1115081"]
[WhiteElo "2335"]
[BlackElo "2046"]
[Result "0-1"]
[Round "09"]
[TimeControl "180+1"]
[Date "2022.11.09"]
[WhiteClock "0:00:03"]
[BlackClock "0:00:10"]

1. e4 {[%clk 0:03:00]}  c6 {[%clk 0:02:58]} 2. d4 {[%clk 0:02:59]}  d5 {[%clk 0:02:59]} 3. e5 {[%clk 0:02:58]}  Bf5 {[%clk 0:02:58]} 4. c4 {[%clk 0:02:58]}  e6 {[%clk 0:02:56]} 5. Nc3 {[%clk 0:02:58]}  Ne7 {[%clk 0:02:54]} 6. h3 {[%clk 0:02:57]}  Nd7 {[%clk 0:02:53]} 7. Nf3 {[%clk 0:02:49]}  h6 {[%clk 0:02:44]} 8. b3 {[%clk 0:02:46]}  g5 {[%clk 0:02:27]} 9. Bd3 {[%clk 0:02:38]}  dxc4 {[%clk 0:02:22]} 10. bxc4 {[%clk 0:02:37]}  Qa5 {[%clk 0:01:53]} 11. Bb2 {[%clk 0:02:33]}  Rd8 {[%clk 0:01:45]} 12. O-O {[%clk 0:02:20]}  Nc5 {[%clk 0:01:42]} 13. Bxf5 {[%clk 0:01:31]}  Nxf5 {[%clk 0:01:43]} 14. d5 {[%clk 0:01:30]}  Qb4 {[%clk 0:01:37]} 15. Qe2 {[%clk 0:01:26]}  Bg7 {[%clk 0:01:22]} 16. Rab1 {[%clk 0:01:04]}  O-O {[%clk 0:01:18]} 17. d6 {[%clk 0:00:47]}  Nxd6 {[%clk 0:01:14]} 18. exd6 {[%clk 0:00:34]}  Bxc3 {[%clk 0:01:03]} 19. Rfd1 {[%clk 0:00:12]}  Na4 {[%clk 0:00:46]} 20. Ba1 {[%clk 0:00:10]}  Qc5 {[%clk 0:00:38]} 21. Rxb7 {[%clk 0:00:07]}  Rxd6 {[%clk 0:00:32]} 22. Rxd6 {[%clk 0:00:06]}  Qxd6 {[%clk 0:00:33]} 23. Bxc3 {[%clk 0:00:05]}  Nxc3 {[%clk 0:00:34]} 24. Qc2 {[%clk 0:00:04]}  Qd1+ {[%clk 0:00:21]} 25. Qxd1 {[%clk 0:00:04]}  Nxd1 {[%clk 0:00:22]} 26. Rxa7 {[%clk 0:00:05]}  Nb2 {[%clk 0:00:20]} 27. Ne5 {[%clk 0:00:04]}  f6 {[%clk 0:00:13]} 28. Nxc6 {[%clk 0:00:03]}  Nxc4 {[%clk 0:00:10]} 29. Ne7+ {[%clk 0:00:03]}  Kh7 {[%clk 0:00:10]} 0-1


[Site "https://www.chess.com"]

[Event "Titled Tuesday Blitz November 08 Early 2022"]
[White "Carbone, Diego"]
[Black "Kohler, Aran"]
[WhiteFideId "3002179"]
[BlackFideId "1002856"]
[WhiteElo "2265"]
[BlackElo "2347"]
[Result "0-1"]
[Round "09"]
[TimeControl "180+1"]
[Date "2022.11.09"]
[WhiteClock "0:00:17"]
[BlackClock "0:00:31"]

1. d4 {[%clk 0:03:00]}  d5 {[%clk 0:02:56]} 2. c4 {[%clk 0:03:00]}  c6 {[%clk 0:02:56]} 3. Nf3 {[%clk 0:03:00]}  Nf6 {[%clk 0:02:56]} 4. e3 {[%clk 0:03:00]}  e6 {[%clk 0:02:57]} 5. Nc3 {[%clk 0:03:01]}  Nbd7 {[%clk 0:02:57]} 6. Qc2 {[%clk 0:03:01]}  a6 {[%clk 0:02:56]} 7. Bd3 {[%clk 0:03:01]}  dxc4 {[%clk 0:02:56]} 8. Bxc4 {[%clk 0:03:02]}  b5 {[%clk 0:02:56]} 9. Be2 {[%clk 0:03:02]}  c5 {[%clk 0:02:54]} 10. a4 {[%clk 0:02:25]}  b4 {[%clk 0:02:46]} 11. Ne4 {[%clk 0:02:25]}  Nxe4 {[%clk 0:02:45]} 12. Qxe4 {[%clk 0:02:26]}  Rb8 {[%clk 0:02:42]} 13. O-O {[%clk 0:02:09]}  Bb7 {[%clk 0:02:42]} 14. Qf4 {[%clk 0:02:04]}  Qf6 {[%clk 0:02:34]} 15. dxc5 {[%clk 0:01:59]}  Qxf4 {[%clk 0:02:33]} 16. exf4 {[%clk 0:02:00]}  Bxc5 {[%clk 0:02:29]} 17. Bd2 {[%clk 0:01:53]}  Ke7 {[%clk 0:02:25]} 18. Rac1 {[%clk 0:01:53]}  Rhc8 {[%clk 0:02:19]} 19. Ne5 {[%clk 0:01:51]}  Nxe5 {[%clk 0:02:15]} 20. fxe5 {[%clk 0:01:52]}  a5 {[%clk 0:01:08]} 21. Bg5+ {[%clk 0:01:31]}  f6 {[%clk 0:01:07]} 22. exf6+ {[%clk 0:01:32]}  gxf6 {[%clk 0:01:08]} 23. Bf4 {[%clk 0:01:20]}  e5 {[%clk 0:01:07]} 24. Bd2 {[%clk 0:01:12]}  Bd4 {[%clk 0:01:01]} 25. b3 {[%clk 0:01:09]}  Rg8 {[%clk 0:00:59]} 26. g3 {[%clk 0:01:01]}  Rgc8 {[%clk 0:00:57]} 27. Bc4 {[%clk 0:00:59]}  Rc5 {[%clk 0:00:55]} 28. Rfe1 {[%clk 0:00:57]}  Rbc8 {[%clk 0:00:54]} 29. Rcd1 {[%clk 0:00:50]}  Rxc4 {[%clk 0:00:50]} 30. bxc4 {[%clk 0:00:50]}  Rxc4 {[%clk 0:00:51]} 31. Be3 {[%clk 0:00:48]}  Bxe3 {[%clk 0:00:50]} 32. Rxe3 {[%clk 0:00:45]}  Bc6 {[%clk 0:00:50]} 33. Red3 {[%clk 0:00:38]}  Bxa4 {[%clk 0:00:44]} 34. Ra1 {[%clk 0:00:38]}  Bc2 {[%clk 0:00:40]} 35. Rf3 {[%clk 0:00:29]}  a4 {[%clk 0:00:40]} 36. Kf1 {[%clk 0:00:25]}  b3 {[%clk 0:00:40]} 37. Ke1 {[%clk 0:00:18]}  b2 {[%clk 0:00:40]} 38. Rfa3 {[%clk 0:00:19]}  bxa1=Q+ {[%clk 0:00:40]} 39. Rxa1 {[%clk 0:00:20]}  Bb3 {[%clk 0:00:38]} 40. Kd2 {[%clk 0:00:20]}  Rc2+ {[%clk 0:00:38]} 41. Ke3 {[%clk 0:00:21]}  f5 {[%clk 0:00:37]} 42. f4 {[%clk 0:00:20]}  Ke6 {[%clk 0:00:35]} 43. fxe5 {[%clk 0:00:20]}  Kxe5 {[%clk 0:00:35]} 44. Kd3 {[%clk 0:00:21]}  Rxh2 {[%clk 0:00:35]} 45. Re1+ {[%clk 0:00:21]}  Kf6 {[%clk 0:00:34]} 46. Re3 {[%clk 0:00:21]}  a3 {[%clk 0:00:33]} 47. Kc3 {[%clk 0:00:20]}  Be6 {[%clk 0:00:32]} 48. Re1 {[%clk 0:00:18]}  a2 {[%clk 0:00:32]} 49. Kb4 {[%clk 0:00:17]}  Rb2+ {[%clk 0:00:31]} 0-1


[Site "https://www.chess.com"]

[Event "Titled Tuesday Blitz November 08 Early 2022"]
[White "Chigaev, Maksim"]
[Black "Biastoch, Bennet"]
[WhiteFideId "4108116"]
[BlackFideId "12939889"]
[WhiteElo "2903"]
[BlackElo "2604"]
[Result "1-0"]
[Round "09"]
[TimeControl "180+1"]
[Date "2022.11.09"]
[WhiteClock "0:00:07"]
[BlackClock "0:00:19"]

1. Nf3 {[%clk 0:03:00]}  d5 {[%clk 0:02:53]} 2. c4 {[%clk 0:03:00]}  c6 {[%clk 0:02:52]} 3. e3 {[%clk 0:02:58]}  Nd7 {[%clk 0:02:49]} 4. Nc3 {[%clk 0:02:56]}  e5 {[%clk 0:02:48]} 5. cxd5 {[%clk 0:02:54]}  cxd5 {[%clk 0:02:47]} 6. Nxd5 {[%clk 0:02:54]}  e4 {[%clk 0:02:47]} 7. Nd4 {[%clk 0:02:49]}  Ngf6 {[%clk 0:02:45]} 8. Nxf6+ {[%clk 0:02:42]}  Nxf6 {[%clk 0:02:45]} 9. Bb5+ {[%clk 0:02:40]}  Bd7 {[%clk 0:02:44]} 10. Qa4 {[%clk 0:02:38]}  Bc5 {[%clk 0:02:42]} 11. Bxd7+ {[%clk 0:02:26]}  Qxd7 {[%clk 0:02:40]} 12. Qxd7+ {[%clk 0:02:26]}  Nxd7 {[%clk 0:02:41]} 13. Nb3 {[%clk 0:02:25]}  Bb6 {[%clk 0:02:37]} 14. f4 {[%clk 0:02:15]}  f5 {[%clk 0:02:24]} 15. Ke2 {[%clk 0:02:08]}  Rd8 {[%clk 0:02:19]} 16. Rd1 {[%clk 0:02:02]}  Nf6 {[%clk 0:02:11]} 17. d4 {[%clk 0:01:48]}  exd3+ {[%clk 0:02:10]} 18. Rxd3 {[%clk 0:01:46]}  Rxd3 {[%clk 0:02:11]} 19. Kxd3 {[%clk 0:01:47]}  Kf7 {[%clk 0:02:12]} 20. Bd2 {[%clk 0:01:43]}  Rd8+ {[%clk 0:02:10]} 21. Ke2 {[%clk 0:01:42]}  Re8 {[%clk 0:02:08]} 22. Rc1 {[%clk 0:01:08]}  Nd5 {[%clk 0:02:00]} 23. Nc5 {[%clk 0:00:47]}  Nxf4+ {[%clk 0:01:46]} 24. Kf3 {[%clk 0:00:47]}  Nd5 {[%clk 0:01:46]} 25. Nxb7 {[%clk 0:00:46]}  Re7 {[%clk 0:01:30]} 26. Nd6+ {[%clk 0:00:46]}  Ke6 {[%clk 0:01:27]} 27. Nc8 {[%clk 0:00:41]}  Rd7 {[%clk 0:01:17]} 28. Rc6+ {[%clk 0:00:36]}  Kf7 {[%clk 0:01:14]} 29. Nd6+ {[%clk 0:00:27]}  Ke6 {[%clk 0:01:05]} 30. Nc4+ {[%clk 0:00:18]}  Ke7 {[%clk 0:01:02]} 31. a4 {[%clk 0:00:18]}  g5 {[%clk 0:00:57]} 32. h3 {[%clk 0:00:15]}  h5 {[%clk 0:00:57]} 33. a5 {[%clk 0:00:13]}  g4+ {[%clk 0:00:57]} 34. hxg4 {[%clk 0:00:14]}  hxg4+ {[%clk 0:00:58]} 35. Ke2 {[%clk 0:00:14]}  Bc7 {[%clk 0:00:46]} 36. b4 {[%clk 0:00:13]}  f4 {[%clk 0:00:36]} 37. exf4 {[%clk 0:00:11]}  Nf6 {[%clk 0:00:23]} 38. Ne5 {[%clk 0:00:08]}  Bxe5 {[%clk 0:00:22]} 39. fxe5 {[%clk 0:00:09]}  Ne4 {[%clk 0:00:23]} 40. Be1 {[%clk 0:00:07]}  Rd5 {[%clk 0:00:20]} 41. Ke3 {[%clk 0:00:07]}  Rxe5 {[%clk 0:00:19]} 42. Kd4 {[%clk 0:00:07]} 1-0


[Site "https://www.chess.com"]

[Event "Titled Tuesday Blitz November 08 Early 2022"]
[White "Clawitter, Craig"]
[Black "Rudykh, Stepan"]
[WhiteFideId "2023105"]
[BlackFideId "4180321"]
[WhiteElo "2170"]
[BlackElo "2233"]
[Result "0-1"]
[Round "09"]
[TimeControl "180+1"]
[Date "2022.11.09"]
[WhiteClock "0:00:02"]
[BlackClock "0:00:14"]

1. e4 {[%clk 0:03:00]}  e6 {[%clk 0:01:33]} 2. d4 {[%clk 0:02:56]}  d5 {[%clk 0:01:33]} 3. e5 {[%clk 0:02:56]}  c5 {[%clk 0:01:34]} 4. c3 {[%clk 0:02:57]}  Nc6 {[%clk 0:01:34]} 5. Nf3 {[%clk 0:02:58]}  Bd7 {[%clk 0:01:35]} 6. Be2 {[%clk 0:02:58]}  Qb6 {[%clk 0:01:31]} 7. dxc5 {[%clk 0:02:49]}  Bxc5 {[%clk 0:01:31]} 8. O-O {[%clk 0:02:49]}  a5 {[%clk 0:01:29]} 9. Bd3 {[%clk 0:02:45]}  Nge7 {[%clk 0:01:29]} 10. Nbd2 {[%clk 0:02:39]}  Ng6 {[%clk 0:01:28]} 11. Nb3 {[%clk 0:02:22]}  Ngxe5 {[%clk 0:01:27]} 12. Nxe5 {[%clk 0:02:23]}  Nxe5 {[%clk 0:01:27]} 13. Nxc5 {[%clk 0:02:20]}  Qxc5 {[%clk 0:01:27]} 14. Be3 {[%clk 0:02:20]}  Qe7 {[%clk 0:01:24]} 15. Bc2 {[%clk 0:02:14]}  Nc4 {[%clk 0:01:23]} 16. Bc1 {[%clk 0:02:05]}  O-O {[%clk 0:01:07]} 17. Qh5 {[%clk 0:01:26]}  h6 {[%clk 0:01:07]} 18. b3 {[%clk 0:01:02]}  Nd6 {[%clk 0:01:05]} 19. Ba3 {[%clk 0:01:00]}  Bb5 {[%clk 0:00:57]} 20. c4 {[%clk 0:00:51]}  Ba6 {[%clk 0:00:57]} 21. Rad1 {[%clk 0:00:33]}  Qc7 {[%clk 0:00:57]} 22. Rfe1 {[%clk 0:00:17]}  Rfd8 {[%clk 0:00:49]} 23. Bb1 {[%clk 0:00:09]}  dxc4 {[%clk 0:00:46]} 24. Bb2 {[%clk 0:00:07]}  c3 {[%clk 0:00:44]} 25. Rc1 {[%clk 0:00:06]}  Nb5 {[%clk 0:00:19]} 26. a4 {[%clk 0:00:06]}  Nd4 {[%clk 0:00:16]} 27. Rxc3 {[%clk 0:00:04]}  Qb6 {[%clk 0:00:17]} 28. Rg3 {[%clk 0:00:02]}  Ne2+ {[%clk 0:00:14]} 0-1


[Site "https://www.chess.com"]

[Event "Titled Tuesday Blitz November 08 Early 2022"]
[White "Csonka, Balazs"]
[Black "Kirillov, Dmitry"]
[WhiteFideId "742910"]
[BlackFideId "34180572"]
[WhiteElo "2404"]
[BlackElo "2095"]
[Result "0-1"]
[Round "09"]
[TimeControl "180+1"]
[Date "2022.11.09"]
[WhiteClock "0:00:02"]
[BlackClock "0:00:50"]

1. d4 {[%clk 0:03:00]}  d5 {[%clk 0:02:59]} 2. Nf3 {[%clk 0:02:59]}  e6 {[%clk 0:02:58]} 3. c4 {[%clk 0:02:58]}  c6 {[%clk 0:02:59]} 4. Qc2 {[%clk 0:02:45]}  f5 {[%clk 0:02:53]} 5. Bf4 {[%clk 0:02:37]}  Nf6 {[%clk 0:02:52]} 6. e3 {[%clk 0:02:37]}  Be7 {[%clk 0:02:48]} 7. Nc3 {[%clk 0:02:34]}  O-O {[%clk 0:02:45]} 8. h3 {[%clk 0:02:34]}  Bd7 {[%clk 0:02:17]} 9. g4 {[%clk 0:02:24]}  Ne4 {[%clk 0:02:09]} 10. gxf5 {[%clk 0:02:10]}  exf5 {[%clk 0:02:10]} 11. Rg1 {[%clk 0:01:55]}  Be6 {[%clk 0:02:08]} 12. Bd3 {[%clk 0:01:45]}  Nd7 {[%clk 0:02:05]} 13. cxd5 {[%clk 0:01:23]}  cxd5 {[%clk 0:02:06]} 14. Qb3 {[%clk 0:01:22]}  Rc8 {[%clk 0:02:05]} 15. Nxe4 {[%clk 0:01:02]}  fxe4 {[%clk 0:01:44]} 16. Bxe4 {[%clk 0:01:00]}  Nf6 {[%clk 0:01:36]} 17. Bd3 {[%clk 0:00:54]}  Nh5 {[%clk 0:01:34]} 18. Be2 {[%clk 0:00:10]}  Qa5+ {[%clk 0:01:24]} 19. Nd2 {[%clk 0:00:06]}  Nxf4 {[%clk 0:01:25]} 20. exf4 {[%clk 0:00:06]}  Bb4 {[%clk 0:01:19]} 21. Rd1 {[%clk 0:00:05]}  Rxf4 {[%clk 0:01:15]} 22. Qe3 {[%clk 0:00:04]}  Re4 {[%clk 0:01:11]} 23. Qg3 {[%clk 0:00:03]}  Bxd2+ {[%clk 0:01:09]} 24. Kf1 {[%clk 0:00:02]}  g6 {[%clk 0:01:06]} 25. Bf3 {[%clk 0:00:02]}  Rf4 {[%clk 0:00:53]} 26. h4 {[%clk 0:00:02]}  Rcf8 {[%clk 0:00:50]} 27. h5 {[%clk 0:00:02]}  Rxf3 {[%clk 0:00:50]} 0-1


[Site "https://www.chess.com"]

[Event "Titled Tuesday Blitz November 08 Early 2022"]
[White "Degenbaev, Aziz"]
[Black "Ladan, Nicholas"]
[WhiteFideId "13802640"]
[BlackFideId "30918855"]
[WhiteElo "2039"]
[BlackElo "2167"]
[Result "1-0"]
[Round "09"]
[TimeControl "180+1"]
[Date "2022.11.09"]
[WhiteClock "0:00:55"]
[BlackClock "0:00:27"]

1. c4 {[%clk 0:02:47]}  e6 {[%clk 0:02:58]} 2. Nc3 {[%clk 0:02:45]}  d5 {[%clk 0:02:58]} 3. cxd5 {[%clk 0:02:44]}  exd5 {[%clk 0:02:59]} 4. d4 {[%clk 0:02:45]}  Nf6 {[%clk 0:02:59]} 5. Bg5 {[%clk 0:02:44]}  a6 {[%clk 0:02:55]} 6. e3 {[%clk 0:02:44]}  Be6 {[%clk 0:02:55]} 7. Bd3 {[%clk 0:02:44]}  Nbd7 {[%clk 0:02:53]} 8. Nge2 {[%clk 0:02:42]}  c6 {[%clk 0:02:53]} 9. O-O {[%clk 0:02:41]}  Bd6 {[%clk 0:02:53]} 10. f3 {[%clk 0:02:39]}  Qc7 {[%clk 0:02:49]} 11. h3 {[%clk 0:02:31]}  Nh5 {[%clk 0:02:34]} 12. e4 {[%clk 0:02:26]}  Bh2+ {[%clk 0:02:08]} 13. Kh1 {[%clk 0:02:25]}  Bf4 {[%clk 0:01:49]} 14. Bxf4 {[%clk 0:02:04]}  Nxf4 {[%clk 0:01:47]} 15. e5 {[%clk 0:02:00]}  Nxd3 {[%clk 0:01:38]} 16. Qxd3 {[%clk 0:02:00]}  g6 {[%clk 0:01:27]} 17. Rac1 {[%clk 0:01:58]}  h5 {[%clk 0:01:15]} 18. Nf4 {[%clk 0:01:57]}  Bf5 {[%clk 0:01:10]} 19. Qe3 {[%clk 0:01:54]}  Qd8 {[%clk 0:00:58]} 20. Rfe1 {[%clk 0:01:32]}  O-O {[%clk 0:00:53]} 21. e6 {[%clk 0:01:31]}  Nf6 {[%clk 0:00:49]} 22. e7 {[%clk 0:01:27]}  Qb6 {[%clk 0:00:43]} 23. exf8=Q+ {[%clk 0:01:26]}  Rxf8 {[%clk 0:00:44]} 24. b3 {[%clk 0:01:19]}  h4 {[%clk 0:00:42]} 25. Qf2 {[%clk 0:01:18]}  g5 {[%clk 0:00:41]} 26. Nfe2 {[%clk 0:01:17]}  Nh5 {[%clk 0:00:40]} 27. f4 {[%clk 0:01:13]}  f6 {[%clk 0:00:37]} 28. Qf3 {[%clk 0:01:05]}  Bg6 {[%clk 0:00:34]} 29. Rf1 {[%clk 0:00:59]}  Rf7 {[%clk 0:00:27]} 30. f5 {[%clk 0:00:55]} 1-0


[Site "https://www.chess.com"]

[Event "Titled Tuesday Blitz November 08 Early 2022"]
[White "Fernandez De La Vara, Arnaldo"]
[Black "Gokerkan, Cem Kaan"]
[WhiteFideId "3518388"]
[BlackFideId "6336760"]
[WhiteElo "2387"]
[BlackElo "2365"]
[Result "0-1"]
[Round "09"]
[TimeControl "180+1"]
[Date "2022.11.08"]
[WhiteClock "0:00:01"]
[BlackClock "0:00:09"]

1. Nf3 {[%clk 0:03:00]}  g6 {[%clk 0:03:00]} 2. g3 {[%clk 0:02:58]}  Bg7 {[%clk 0:03:01]} 3. Bg2 {[%clk 0:02:57]}  Nf6 {[%clk 0:03:01]} 4. b3 {[%clk 0:02:56]}  O-O {[%clk 0:03:02]} 5. Bb2 {[%clk 0:02:57]}  b6 {[%clk 0:03:01]} 6. c4 {[%clk 0:02:57]}  Bb7 {[%clk 0:03:01]} 7. O-O {[%clk 0:02:56]}  c5 {[%clk 0:03:02]} 8. Nc3 {[%clk 0:02:56]}  d5 {[%clk 0:03:01]} 9. cxd5 {[%clk 0:02:49]}  Nxd5 {[%clk 0:03:00]} 10. Qc1 {[%clk 0:02:49]}  Nf6 {[%clk 0:02:54]} 11. Rd1 {[%clk 0:02:47]}  Nc6 {[%clk 0:02:53]} 12. d4 {[%clk 0:02:44]}  cxd4 {[%clk 0:02:33]} 13. Nxd4 {[%clk 0:02:44]}  Nxd4 {[%clk 0:01:27]} 14. Bxb7 {[%clk 0:02:43]}  Rb8 {[%clk 0:01:28]} 15. Ba6 {[%clk 0:02:43]}  b5 {[%clk 0:01:28]} 16. Bxb5 {[%clk 0:02:12]}  Rxb5 {[%clk 0:00:57]} 17. Rxd4 {[%clk 0:02:11]}  Qxd4 {[%clk 0:00:53]} 18. Nxb5 {[%clk 0:02:09]}  Qg4 {[%clk 0:00:52]} 19. Nd4 {[%clk 0:01:52]}  e5 {[%clk 0:00:45]} 20. Nc6 {[%clk 0:01:41]}  Qxe2 {[%clk 0:00:35]} 21. Bxe5 {[%clk 0:01:36]}  Ng4 {[%clk 0:00:28]} 22. Ne7+ {[%clk 0:01:20]}  Kh8 {[%clk 0:00:29]} 23. Bxg7+ {[%clk 0:01:21]}  Kxg7 {[%clk 0:00:30]} 24. Qf4 {[%clk 0:00:57]}  Nxf2 {[%clk 0:00:17]} 25. Nf5+ {[%clk 0:00:29]}  gxf5 {[%clk 0:00:18]} 26. Qxf2 {[%clk 0:00:29]}  Qxf2+ {[%clk 0:00:19]} 27. Kxf2 {[%clk 0:00:29]}  Rc8 {[%clk 0:00:19]} 28. Re1 {[%clk 0:00:27]}  Kf6 {[%clk 0:00:18]} 29. Ke3 {[%clk 0:00:14]}  Rc3+ {[%clk 0:00:17]} 30. Kd2 {[%clk 0:00:13]}  Rf3 {[%clk 0:00:17]} 31. Re3 {[%clk 0:00:13]}  Rf2+ {[%clk 0:00:18]} 32. Re2 {[%clk 0:00:13]}  Rf1 {[%clk 0:00:18]} 33. Kc3 {[%clk 0:00:13]}  f4 {[%clk 0:00:18]} 34. gxf4 {[%clk 0:00:09]}  Rxf4 {[%clk 0:00:19]} 35. b4 {[%clk 0:00:06]}  Rf3+ {[%clk 0:00:18]} 36. Kc4 {[%clk 0:00:06]}  Ra3 {[%clk 0:00:17]} 37. Kc5 {[%clk 0:00:04]}  Kg5 {[%clk 0:00:17]} 38. Rg2+ {[%clk 0:00:03]}  Kf5 {[%clk 0:00:14]} 39. b5 {[%clk 0:00:03]}  Ke4 {[%clk 0:00:09]} 40. Kb4 {[%clk 0:00:03]}  Rh3 {[%clk 0:00:08]} 41. a4 {[%clk 0:00:03]}  f5 {[%clk 0:00:08]} 42. a5 {[%clk 0:00:04]}  Rh6 {[%clk 0:00:06]} 43. Kc5 {[%clk 0:00:03]}  f4 {[%clk 0:00:06]} 44. b6 {[%clk 0:00:04]}  Rh5+ {[%clk 0:00:05]} 45. Kc6 {[%clk 0:00:03]}  Rxa5 {[%clk 0:00:06]} 46. b7 {[%clk 0:00:03]}  Ra6+ {[%clk 0:00:07]} 47. Kc7 {[%clk 0:00:03]}  Rb6 {[%clk 0:00:08]} 48. b8=Q {[%clk 0:00:03]}  Rxb8 {[%clk 0:00:08]} 49. Kxb8 {[%clk 0:00:04]}  f3 {[%clk 0:00:09]} 50. Rg7 {[%clk 0:00:04]}  a5 {[%clk 0:00:07]} 51. Rxh7 {[%clk 0:00:04]}  f2 {[%clk 0:00:05]} 52. Rf7 {[%clk 0:00:04]}  Ke3 {[%clk 0:00:06]} 53. h4 {[%clk 0:00:04]}  a4 {[%clk 0:00:07]} 54. h5 {[%clk 0:00:05]}  a3 {[%clk 0:00:08]} 55. Re7+ {[%clk 0:00:02]}  Kd3 {[%clk 0:00:08]} 56. Rf7 {[%clk 0:00:01]}  a2 {[%clk 0:00:08]} 57. Rxf2 {[%clk 0:00:01]}  a1=Q {[%clk 0:00:09]} 58. Rf6 {[%clk 0:00:01]}  Qxf6 {[%clk 0:00:09]} 0-1


[Site "https://www.chess.com"]

[Event "Titled Tuesday Blitz November 08 Early 2022"]
[White "Gabdrakhmanov, Azat"]
[Black "Wagner, Dennis"]
[WhiteFideId "34189197"]
[BlackFideId "24650684"]
[WhiteElo "2600"]
[BlackElo "2759"]
[Result "0-1"]
[Round "09"]
[TimeControl "180+1"]
[Date "2022.11.09"]
[WhiteClock "0:00:03"]
[BlackClock "0:00:45"]

1. e4 {[%clk 0:03:00]}  e5 {[%clk 0:02:59]} 2. Nf3 {[%clk 0:03:01]}  Nc6 {[%clk 0:02:59]} 3. Bb5 {[%clk 0:03:01]}  a6 {[%clk 0:02:59]} 4. Ba4 {[%clk 0:03:00]}  Nf6 {[%clk 0:03:00]} 5. O-O {[%clk 0:03:00]}  b5 {[%clk 0:03:00]} 6. Bb3 {[%clk 0:03:00]}  Bc5 {[%clk 0:03:01]} 7. c3 {[%clk 0:03:00]}  d6 {[%clk 0:02:56]} 8. d4 {[%clk 0:03:00]}  Bb6 {[%clk 0:02:56]} 9. Bg5 {[%clk 0:03:01]}  Rb8 {[%clk 0:02:46]} 10. Qd3 {[%clk 0:03:00]}  h6 {[%clk 0:02:44]} 11. Bh4 {[%clk 0:03:00]}  O-O {[%clk 0:02:34]} 12. Nbd2 {[%clk 0:02:58]}  Re8 {[%clk 0:02:33]} 13. Rfe1 {[%clk 0:02:57]}  Na5 {[%clk 0:02:23]} 14. Bc2 {[%clk 0:02:53]}  c5 {[%clk 0:02:23]} 15. dxc5 {[%clk 0:02:36]}  dxc5 {[%clk 0:02:24]} 16. Qe2 {[%clk 0:02:36]}  c4 {[%clk 0:02:22]} 17. Nf1 {[%clk 0:02:33]}  g5 {[%clk 0:02:06]} 18. Bg3 {[%clk 0:02:23]}  Nc6 {[%clk 0:02:06]} 19. Rad1 {[%clk 0:02:22]}  Qe7 {[%clk 0:02:00]} 20. h4 {[%clk 0:02:21]}  Bg4 {[%clk 0:01:40]} 21. hxg5 {[%clk 0:02:18]}  hxg5 {[%clk 0:01:40]} 22. Ne3 {[%clk 0:02:14]}  Bxe3 {[%clk 0:01:39]} 23. Qxe3 {[%clk 0:02:13]}  Nh5 {[%clk 0:01:33]} 24. Rd5 {[%clk 0:01:59]}  Nf4 {[%clk 0:01:32]} 25. Rd2 {[%clk 0:01:25]}  Kg7 {[%clk 0:01:26]} 26. Nh2 {[%clk 0:01:19]}  Be6 {[%clk 0:01:24]} 27. Qf3 {[%clk 0:01:04]}  Rh8 {[%clk 0:01:21]} 28. Bxf4 {[%clk 0:00:59]}  gxf4 {[%clk 0:01:16]} 29. g3 {[%clk 0:00:52]}  Qg5 {[%clk 0:01:10]} 30. Rd6 {[%clk 0:00:27]}  Rxh2 {[%clk 0:01:03]} 31. Kxh2 {[%clk 0:00:24]}  Bg4 {[%clk 0:01:03]} 32. Qh1 {[%clk 0:00:15]}  Rh8+ {[%clk 0:01:02]} 33. Kg1 {[%clk 0:00:15]}  Rxh1+ {[%clk 0:01:01]} 34. Kxh1 {[%clk 0:00:16]}  fxg3 {[%clk 0:00:59]} 35. fxg3 {[%clk 0:00:13]}  Bf3+ {[%clk 0:00:59]} 36. Kh2 {[%clk 0:00:14]}  Qh5+ {[%clk 0:00:55]} 37. Kg1 {[%clk 0:00:11]}  Qh1+ {[%clk 0:00:55]} 38. Kf2 {[%clk 0:00:11]}  Qg2+ {[%clk 0:00:56]} 39. Ke3 {[%clk 0:00:11]}  Bg4 {[%clk 0:00:53]} 40. Bd1 {[%clk 0:00:08]}  Qxg3+ {[%clk 0:00:49]} 41. Kd2 {[%clk 0:00:09]}  Qf2+ {[%clk 0:00:48]} 42. Be2 {[%clk 0:00:09]}  Nd4 {[%clk 0:00:43]} 43. cxd4 {[%clk 0:00:07]}  exd4 {[%clk 0:00:44]} 44. Kd1 {[%clk 0:00:06]}  d3 {[%clk 0:00:45]} 45. Bxg4 {[%clk 0:00:03]}  Qc2# {[%clk 0:00:45]} 0-1


[Site "https://www.chess.com"]

[Event "Titled Tuesday Blitz November 08 Early 2022"]
[White "Garcia Ramos, Daniel"]
[Black "Goltsev, Dmitry"]
[WhiteFideId "32010311"]
[BlackFideId "24176710"]
[WhiteElo "2593"]
[BlackElo "2752"]
[Result "0-1"]
[Round "09"]
[TimeControl "180+1"]
[Date "2022.11.09"]
[WhiteClock "0:00:01"]
[BlackClock "0:01:07"]

1. e4 {[%clk 0:03:00]}  e6 {[%clk 0:03:00]} 2. d4 {[%clk 0:03:00]}  d5 {[%clk 0:03:01]} 3. Bd3 {[%clk 0:02:57]}  c5 {[%clk 0:03:00]} 4. exd5 {[%clk 0:02:56]}  exd5 {[%clk 0:02:59]} 5. dxc5 {[%clk 0:02:54]}  Bxc5 {[%clk 0:02:58]} 6. Nf3 {[%clk 0:02:52]}  Nf6 {[%clk 0:02:58]} 7. O-O {[%clk 0:02:53]}  O-O {[%clk 0:02:57]} 8. h3 {[%clk 0:02:53]}  Nc6 {[%clk 0:02:58]} 9. a3 {[%clk 0:02:52]}  Qd6 {[%clk 0:02:58]} 10. Nc3 {[%clk 0:02:44]}  Bxh3 {[%clk 0:02:49]} 11. b4 {[%clk 0:02:19]}  Qg3 {[%clk 0:02:45]} 12. Ne1 {[%clk 0:02:09]}  Ng4 {[%clk 0:02:43]} 13. Qxg4 {[%clk 0:02:07]}  Bxg4 {[%clk 0:02:37]} 14. bxc5 {[%clk 0:02:05]}  Qe5 {[%clk 0:02:37]} 15. Bd2 {[%clk 0:02:03]}  Nd4 {[%clk 0:02:34]} 16. Rb1 {[%clk 0:01:57]}  Rac8 {[%clk 0:02:23]} 17. Rxb7 {[%clk 0:01:49]}  Rxc5 {[%clk 0:02:15]} 18. Rxa7 {[%clk 0:01:49]}  Rc6 {[%clk 0:02:14]} 19. Ra5 {[%clk 0:01:45]}  Rxc3 {[%clk 0:01:58]} 20. Bxc3 {[%clk 0:01:42]}  Ne2+ {[%clk 0:01:58]} 21. Bxe2 {[%clk 0:01:42]}  Qxc3 {[%clk 0:01:58]} 22. Bxg4 {[%clk 0:01:27]}  Qxa5 {[%clk 0:01:58]} 23. Nf3 {[%clk 0:01:13]}  Qxa3 {[%clk 0:01:54]} 24. Bf5 {[%clk 0:01:13]}  g6 {[%clk 0:01:51]} 25. Bd3 {[%clk 0:01:13]}  Rb8 {[%clk 0:01:49]} 26. Re1 {[%clk 0:01:11]}  Qd6 {[%clk 0:01:46]} 27. g3 {[%clk 0:01:11]}  Kg7 {[%clk 0:01:42]} 28. Kg2 {[%clk 0:01:11]}  Qd7 {[%clk 0:01:39]} 29. Ra1 {[%clk 0:01:05]}  d4 {[%clk 0:01:34]} 30. Ra5 {[%clk 0:00:41]}  Qc6 {[%clk 0:01:29]} 31. Re5 {[%clk 0:00:40]}  Re8 {[%clk 0:01:23]} 32. Rxe8 {[%clk 0:00:31]}  Qxe8 {[%clk 0:01:22]} 33. Nxd4 {[%clk 0:00:31]}  Qe5 {[%clk 0:01:20]} 34. Ne2 {[%clk 0:00:29]}  h5 {[%clk 0:01:19]} 35. Kf3 {[%clk 0:00:23]}  g5 {[%clk 0:01:17]} 36. Kg2 {[%clk 0:00:22]}  f5 {[%clk 0:01:14]} 37. f4 {[%clk 0:00:18]}  Qd5+ {[%clk 0:01:12]} 38. Kh2 {[%clk 0:00:12]}  g4 {[%clk 0:01:12]} 39. Nc3 {[%clk 0:00:07]}  Qf3 {[%clk 0:01:10]} 40. Ne2 {[%clk 0:00:07]}  Kf6 {[%clk 0:01:08]} 41. Kg1 {[%clk 0:00:05]}  h4 {[%clk 0:01:06]} 42. gxh4 {[%clk 0:00:03]}  g3 {[%clk 0:01:07]} 43. Nxg3 {[%clk 0:00:01]}  Qxg3+ {[%clk 0:01:08]} 44. Kf1 {[%clk 0:00:01]}  Qxf4+ {[%clk 0:01:07]} 0-1


[Site "https://www.chess.com"]